Cogmind - Beta 10.2 @@@ ROGUE MODE // 2021.06.04 @ 15:42:57 Player: Finestep Result: Destroyed by B-75 Beast with Heavy Machine Gun Performance ------------- Evolutions (4) 2000 Regions Visited (15) 3000 Robots Destroyed (306) 1530 Value Destroyed (13509) 13509 Prototype IDs (11) 220 Alien Tech Used (0) 0 Bonus (5999) 5999 TOTAL SCORE: 26258 Bonus ------- High Alert Combat Kills 2185 Follower Combat Kills 1930 Entered Garrisons 1000 Used RIF Installer 2000 Friendly Fire -1116 Cogmind --------- Core Integrity 0/850 Matter 140/300 Energy 58/300 System Corruption 2% Temperature Cool (311) Movement Core (1450) Ox28 Location -6/Garrison Parts ------- > --- POWER (1) -------- Enhanced Nuclear Core > --- PROPULSION (4) --- (None) > --- UTILITY (7) ------ Large Storage Unit Large Storage Unit Large Storage Unit Armor Integrity Analyzer Improved Heavy Armor Plating Relay Coupler [Sentry] (17) > --- WEAPON (3) ------- Cooled Particle Cannon Heavy Plasma Cannon > --- INVENTORY (22) --- Light Treads Fusion Compressor Matter Compressor (250) Advanced Terrain Scanner Weapon Cycler Relay Coupler [NC] (30) Relay Coupler [NC] (34) Relay Coupler [NC] (39) Relay Coupler [NC] (33) Relay Coupler [Swarmer] (42) Relay Coupler [Hunter] (11) Long-range Tractor Beam Proton Missile Launcher Remote Datajack Heavy Pick Peak State ------------ > --- POWER ------------ Micro Fission Core > --- PROPULSION ------- Improved Medium Treads Improved Medium Treads Heavy Treads > --- UTILITY ---------- Large Storage Unit Large Storage Unit Large Storage Unit Weapon Cycler Layered Medium Armor Plating Relay Coupler [Sentry] Relay Coupler [Hunter] > --- WEAPON ----------- Flak Gun Flak Gun Heavy Pick > --- INVENTORY -------- Enhanced Nuclear Core Fusion Compressor Advanced Terrain Scanner Armor Integrity Analyzer Improved Heavy Armor Plating Relay Coupler [NC] Relay Coupler [NC] Relay Coupler [NC] Relay Coupler [NC] Relay Coupler [NC] Relay Coupler [NC] Relay Coupler [Swarmer] Relay Coupler [Hunter] Long-range Tractor Beam Cooled Particle Cannon Heavy Plasma Cannon Flak Gun Flak Gun Proton Missile Launcher Remote Datajack Remote Datajack [Rating: 69] Favorites ----------- Power Micro Fission Core Engine Improved Deuterium Engine Power Core Micro Fission Core Reactor Antimatter Reactor Propulsion Light Treads Treads Light Treads Leg Aluminum Leg Wheel Armored Wheel Hover Unit Aerolev Unit Utility Large Storage Unit Device Improved Shield Generator Storage Large Storage Unit Processor Armor Integrity Analyzer Hackware Relay Coupler [Grunt] Protection Light Armor Plating Weapon Flak Gun Energy Gun Improved EM Shotgun Energy Cannon Heavy Plasma Cannon Ballistic Gun Flak Gun Ballistic Cannon Gauss Cannon Launcher Grenade Launcher Special Weapon Remote Datajack Slashing Weapon Great Axe Piercing Weapon Spear Build | -11 -10 -9 -9 -8 -8 -7 -7 -7 -7 -7 -7 -6 -6 -6 -6 ------- Run | Scr Mat Mat Min Mat Gar Fac Was Fac Gar Fac Gar Fac Gar Fac Gar Slots Evolved 8 | . . 2 . 2 . 2 . . . . . 2 . . . Power . | . . . . . . . . . . . . . . . . Propulsion 2 | . . 1 . . . . . . . . . 1 . . . Utility 5 | . . 1 . 2 . 2 . . . . . . . . . Weapon 1 | . . . . . . . . . . . . 1 . . . Parts Attached 397 | 6 8 24 9 34 22 33 13 54 15 15 42 32 23 49 18 Power 18 | 1 . 3 . 3 1 1 2 2 . . 2 2 . . 1 Engine 9 | 1 . 3 . 2 . 1 . . . . 1 1 . . . Core 6 | . . . . 1 1 . . 1 . . 1 1 . . 1 Reactor 3 | . . . . . . . 2 1 . . . . . . . Propulsion 51 | 2 1 5 4 8 6 6 2 3 . 1 9 2 . 2 . Treads 36 | 2 1 5 2 7 4 6 2 2 . 1 2 . . 2 . Leg 4 | . . . . . . . . . . . 4 . . . . Wheel 10 | . . . 2 . 2 . . 1 . . 3 2 . . . Hover 1 | . . . . 1 . . . . . . . . . . . Flight . | . . . . . . . . . . . . . . . . Utility 126 | 1 5 6 . 13 5 11 5 17 6 4 12 12 10 16 3 Device 27 | . 1 . . 2 . 2 2 8 2 . 3 2 2 3 . Storage 15 | 1 4 3 . . . 1 . . . . 1 5 . . . Processor 3 | . . . . . . 2 . . . . . . . . 1 Hackware 33 | . . . . . . 2 1 6 3 2 6 3 4 5 1 Protection 48 | . . 3 . 11 5 4 2 3 1 2 2 2 4 8 1 Artifact . | . . . . . . . . . . . . . . . . Weapon 202 | 2 2 10 5 10 10 15 4 32 9 10 19 16 13 31 14 Energy Gun 21 | . . 3 1 . 2 7 . 6 . . . 2 . . . Energy Cannon 5 | . . . . . . . . . . . . . . 3 2 Ballistic Gun 85 | 2 1 3 3 6 4 3 . 9 4 5 10 8 7 14 6 Ballistic Cannon 11 | . . 2 . 3 1 1 . 4 . . . . . . . Launcher 11 | . 1 2 1 . 2 . . 2 . . 2 . . . 1 Special Weapon 45 | . . . . . . 2 2 9 3 4 3 5 2 12 3 Impact Weapon . | . . . . . . . . . . . . . . . . Slashing Weapon 11 | . . . . 1 1 2 2 2 . . . . 3 . . Piercing Weapon 13 | . . . . . . . . . 2 1 4 1 1 2 2 Special Melee Weapon . | . . . . . . . . . . . . . . . . Unidentified Prototypes 6 | . . 1 . 3 . . . 2 . . . . . . . Parts Lost 54 | . . 6 8 2 8 1 1 . . 1 13 1 2 1 10 Power 5 | . . 2 1 . . . . . . . 1 . . . 1 Propulsion 12 | . . 2 4 . 1 . . . . . 2 . . . 3 Utility 18 | . . . . . 5 1 1 . . 1 7 . 1 1 1 Weapon 19 | . . 2 3 2 2 . . . . . 3 1 1 . 5 Highest Loss Streak 10 | . . 2 5 1 3 1 1 . . 1 8 1 1 1 10 Average Slot Usage (%) 90 | . 99 98 88 98 99 99 77 77 91 89 76 92 87 87 86 Engine 3 | . 14 9 . 8 3 6 2 . . . 3 4 . . . Core 2 | . . . . . 5 . . . . . 2 1 6 6 5 Reactor 1 | . . . . . . . 4 7 7 7 . . . . . Treads 16 | . 27 32 12 23 24 7 15 14 15 12 1 6 6 18 15 Wheel 4 | . . . 19 3 2 14 . . . . 10 12 13 1 . Device 4 | . 1 . . 1 . 5 11 10 22 20 8 . 1 . 4 Storage 21 | . 25 28 33 27 27 23 15 15 15 15 15 15 20 20 20 Hackware 6 | . . . . . . . 2 4 2 5 9 23 14 14 13 Protection 8 | . . 4 . 16 17 15 7 7 12 10 4 6 4 5 5 Energy Gun 1 | . . 6 2 . 4 5 . 2 . . . 1 . . . Ballistic Gun 13 | . 27 14 19 15 10 7 . 6 13 12 10 13 16 17 13 Slashing Weapon 1 | . . . . . 1 . 10 . . . . . . . . Naked Turns . | . . . . . . . . . . . . . . . . Heaviest Build 112 | 11 56 77 77 91 91 98 104 112 79 79 96 91 86 90 74 Greatest Support 130 | 40 40 60 60 60 60 78 98 98 98 98 70 70 70 130 130 Greatest Overweight (x) 29 | 1 1 1 2 3 6 4 1 6 . 1 29 3 3 3 . Average Overweight (x) 1 | . . . 1 1 1 2 . . . . 1 2 1 . . Largest Inventory Capacity 24 | 6 18 24 24 24 24 24 24 16 16 16 16 22 22 22 22 Average Capacity 19 | 5 14 21 24 24 24 24 16 16 16 16 16 18 22 22 22 Most Carried 24 | 5 18 24 24 24 24 24 24 16 16 16 16 22 22 22 22 Average Carried 19 | 2 13 21 19 23 23 23 16 15 15 15 15 18 21 21 21 Final Capacity 24 | 6 18 24 24 24 24 24 16 16 16 16 16 22 22 22 22 Final Carried 24 | 5 18 24 19 24 24 23 16 16 16 16 16 22 22 22 15 Class Distribution -------------------- 32% | Bothacker-Mutant 18% | Mutant 15% | Scavenger-Mutant 13% | Botlord-Tank 8% | Botlord-Mutant 7% | Hauler-Mutant 3% | Bothacker-Tank Dominant Class ---------------- Mutant | -10/Materials Scavenger-Mutant | -9/Materials Hauler-Mutant | -9/Mines Scavenger-Mutant | -8/Materials Scavenger-Mutant | -8/Garrison Bothacker-Mutant | -7/Factory Bothacker-Mutant | -7/Waste Mutant | -7/Factory Mutant | -7/Garrison Bothacker-Mutant | -7/Factory Bothacker-Mutant | -7/Garrison Bothacker-Mutant | -6/Factory Botlord-Mutant | -6/Garrison Botlord-Tank | -6/Factory Botlord-Mutant | -6/Garrison Resources | -11 -10 -9 -9 -8 -8 -7 -7 -7 -7 -7 -7 -6 -6 -6 -6 ----------- Run | Scr Mat Mat Min Mat Gar Fac Was Fac Gar Fac Gar Fac Gar Fac Gar Matter Collected 10562 | 314 744 708 135 1111 705 557 299 1189 483 301 857 874 895 1095 295 Remotely 373 | . . . . . . . . . . . . . 373 . . Salvage Created 14311 | 172 946 1221 12 1487 1297 910 1132 1759 476 453 1108 901 877 1048 512 Parts 711 | 15 74 58 . 94 59 50 20 95 30 14 51 49 36 47 19 Haulers Intercepted 8 | . 2 . . 5 . 1 . . . . . . . . . Recyclers Shooed 14 | 1 3 2 . 1 . . . 3 . . . 1 . 3 . Parts Field Recycled . | . . . . . . . . . . . . . . . . Retrieved Matter . | . . . . . . . . . . . . . . . . Parts Self-Destructed . | . . . . . . . . . . . . . . . . Prevented . | . . . . . . . . . . . . . . . . Kills | -11 -10 -9 -9 -8 -8 -7 -7 -7 -7 -7 -7 -6 -6 -6 -6 ------- Run | Scr Mat Mat Min Mat Gar Fac Was Fac Gar Fac Gar Fac Gar Fac Gar Combat Hostiles Destroyed 228 | . 12 20 8 25 27 14 4 28 12 4 22 13 18 10 11 Melee 7 | . . . . . . . 4 1 . . 1 . . 1 . Guns 191 | . 12 17 2 25 18 12 . 21 12 4 18 13 18 9 10 Cannons 8 | . . . . . 4 1 . 3 . . . . . . . AOE 21 | . . 3 6 . 5 . . 3 . . 3 . . . 1 Classes Destroyed 20 | 2 7 1 2 3 . 1 1 1 1 . . . 1 . . Worker 16 | . 6 2 . 4 . . . 1 . 1 . . . 2 . Builder 6 | . 3 . . 1 . . . 1 . . . . . 1 . Tunneler 7 | 4 . 1 . . . . . . . 1 . 1 . . . Hauler 8 | . 2 . . 5 . 1 . . . . . . . . . Recycler 20 | 1 3 3 . 1 . 2 . 4 . 2 . 1 . 3 . Mechanic 1 | . . . . . . . . 1 . . . . . . . Operator 5 | . 1 2 . 1 . 1 . . . . . . . . . Watcher 16 | . 3 2 . 3 . 2 . 3 . . . 1 . 2 . Swarmer 65 | . 5 3 . 4 3 3 . 6 7 . 18 2 7 3 4 Grunt 87 | . 7 8 . 10 14 6 . 14 2 2 4 6 8 4 2 Brawler 6 | . . . . 1 4 . . . . . . . 1 . . Duelist 11 | . . . . 1 3 . . . . 2 . 1 1 1 2 Sentry 33 | . . 9 . 8 2 1 . 5 2 1 1 1 . 1 2 Demolisher 4 | . . . 2 . 1 . . . . . . . . . 1 Specialist 1 | . . . . . . . . . 1 . . . . . . Hunter 9 | . . . . 1 . 2 . 2 . . 1 1 . 2 . Programmer 6 | . . . . . . 2 . 1 . 1 . 2 . . . Behemoth 1 | . . . . . . . . . . . . . 1 . . Compactor 4 | . . . . . . . 4 . . . . . . . . Assembled 6 | . . . 6 . . . . . . . . . . . . Best Kill Streak 9 | 5 7 7 6 7 4 3 1 4 7 4 9 3 8 5 4 Combat Bots Only 9 | . 5 5 6 7 4 3 1 4 7 1 9 3 8 3 4 Max Kills in Single Turn 5 | 1 2 2 3 1 2 1 1 2 2 5 1 1 2 2 2 Gunslinging 1 | . . . . . 1 . . 1 . . . . 1 . 1 Exploded 3 | . . 2 3 . 2 . . 2 . . 1 . . . 1 Melee 1 | . . . . . . . 1 1 . . 1 . . 1 . Uniques/NPCs Destroyed . | . . . . . . . . . . . . . . . . Combat | -11 -10 -9 -9 -8 -8 -7 -7 -7 -7 -7 -7 -6 -6 -6 -6 -------- Run | Scr Mat Mat Min Mat Gar Fac Was Fac Gar Fac Gar Fac Gar Fac Gar Damage Taken 18734 | . 450 1221 1058 1579 1429 1035 50 1484 489 385 2749 1349 1656 1260 2540 Core 2289 | . 96 136 243 199 126 101 50 40 19 84 335 157 127 65 511 Absorbed by Shields 1218 | . 9 . . . . 279 . 557 191 70 71 . 41 . . Reduced by Siege Mode 175 | . . . . . . . . 23 9 . 36 20 63 . 24 Core Remaining (%) 43 | 100 61 . 5 . 40 . . . . . 10 . . . . Volleys Fired 972 | 9 77 100 15 121 85 80 13 110 36 22 77 63 52 63 49 Largest 3 | 2 2 2 2 2 2 2 1 2 2 2 2 3 3 3 3 Hottest 120 | 40 40 70 68 70 90 110 30 76 56 56 56 116 86 90 120 Shots Fired 1822 | 18 153 191 25 226 158 151 13 187 62 36 112 151 125 124 90 Gun 1550 | 18 152 177 22 210 124 144 . 131 53 28 95 135 114 92 55 Cannon 120 | . . 11 . 16 28 5 . 29 . . . . . 4 27 Launcher 30 | . 1 3 3 . 6 . . 7 . . 5 . . . 5 Special 122 | . . . . . . 2 13 20 9 8 12 16 11 28 3 Kinetic 1401 | 18 152 144 18 226 90 84 . 109 53 28 95 123 114 92 55 Thermal 129 | . . 40 . . . 1 6 51 . . . . . 4 27 Explosive 13 | . 1 3 3 . 6 . . . . . . . . . . Electromagnetic 164 | . . 4 4 . 62 65 . 7 . . 5 12 . . 5 Robot Hit Streak 50 | 6 9 18 19 13 14 7 4 50 31 19 20 15 17 16 23 Robot Miss Streak 12 | 2 3 3 4 8 4 7 1 4 5 6 12 6 5 8 7 Penetration Max . | . . . . . . . . . . . . . . . . Secondary Targets 26 | . 3 2 1 2 3 . . 1 2 . . 3 4 2 3 Max Gunslinging Chain 1 | . 1 1 1 1 1 . . 1 1 . . 1 1 1 1 Shots Hit Robots 1456 | 11 99 136 15 169 118 87 78 153 57 29 95 112 114 110 73 Core Hits 916 | 6 43 58 18 81 69 38 9 101 54 33 75 68 92 117 54 Critical Hits 20 | 1 1 . . 2 10 1 1 3 . . . . . 1 . Critical Kills 6 | . . . . . 2 . . 3 . . . . . 1 . Critical Parts Destroyed 12 | 1 1 . . 2 7 1 . . . . . . . . . Melee Attacks 149 | . . . . 1 12 6 68 9 2 2 15 10 15 7 2 Impact . | . . . . . . . . . . . . . . . . Slashing 100 | . . . . 1 12 6 68 9 . . . . 4 . . Piercing 49 | . . . . . . . . . 2 2 15 10 11 7 2 Sneak Attacks 77 | . . . . . . . 68 . . . 3 . . 6 . Combat Hostiles 70 | . . . . . . . 68 . . . 1 . . 1 . Follow-up Attacks . | . . . . . . . . . . . . . . . . Damage Inflicted 30031 | 135 1178 2132 599 2621 3143 1618 3906 3056 912 1108 2039 1703 1762 2288 1831 Guns 19190 | 135 1178 1698 190 2391 1390 1464 . 2201 912 472 1011 1689 1752 1710 997 Cannons 1867 | . . 103 . 228 311 65 . 505 . . . . . . 655 Explosions 2861 | . . 331 409 . 729 89 . 236 . 636 252 . . . 179 Melee 6034 | . . . . . 713 . 3853 114 . . 776 . . 578 . Ramming 26 | . . . . 2 . . . . . . . 14 10 . . Kinetic 17873 | 135 1178 1430 176 2619 1009 978 . 1988 912 472 1011 1506 1752 1710 997 Thermal 2739 | . . 342 . . 203 89 53 761 . 636 . . . . 655 Explosive 1166 | . . 231 409 . 526 . . . . . . . . . . Electromagnetic 2193 | . . 129 14 . 692 551 . 193 . . 252 183 . . 179 Impact . | . . . . . . . . . . . . . . . . Slashing 4680 | . . . . . 713 . 3853 114 . . . . . . . Piercing 1354 | . . . . . . . . . . . 776 . . 578 . Highest Corruption 10 | . . . . . . 3 10 1 1 1 1 2 2 2 2 Average Corruption 1 | . . . . . . 2 4 1 1 1 1 1 2 2 2 Corruption Purged 10 | . . . . . . . 10 . . . . . . . . Effects 127 | . . . . . . 13 34 8 2 6 4 3 25 25 7 Message Errors 38 | . . . . . . 1 4 . 2 3 1 3 12 9 3 Matter Fused 9 | . . . . . . 4 5 . . . . . . . . Heat Flow Errors 14 | . . . . . . 1 4 . . . . . 6 3 . Energy Discharges 23 | . . . . . . 3 4 2 . 1 1 . 3 6 3 Parts Rejected 1 | . . . . . . . 1 . . . . . . . . Data Loss (minor) 21 | . . . . . . 1 7 3 . 1 2 . . 7 . Data Loss (major) 1 | . . . . . . . 1 . . . . . . . . Misdirections 1 | . . . . . . . 1 . . . . . . . . Targeting Errors 18 | . . . . . . 3 7 3 . 1 . . 3 . 1 Weapon Failures 1 | . . . . . . . . . . . . . 1 . . Overload Shots 1 | . . . . . . . . . . . . . . . 1 Overflow Damage 354 | . . 22 36 . 29 5 . 6 . 72 38 . . 146 . Projectiles 6 | . . . . . . . . 6 . . . . . . . Explosions 164 | . . 22 36 . 29 5 . . . 72 . . . . . Melee 184 | . . . . . . . . . . . 38 . . 146 . Knockbacks 13 | . . . . 1 6 . . 6 . . . . . . . Impact . | . . . . . . . . . . . . . . . . Kinetic 11 | . . . . 1 5 . . 5 . . . . . . . Secondary 2 | . . . . . 1 . . 1 . . . . . . . Self-Inflicted Damage 345 | . . 43 27 . 32 56 . 74 . 112 1 . . . . Shots 10 | . . 1 3 . 1 1 . 1 . 2 1 . . . . Rammed 3 | . . . . 1 . . . . . . . 1 1 . . Targets Rammed 3 | . . . . 1 . . . . . . . 1 1 . . Kicked . | . . . . . . . . . . . . . . . . Crushed . | . . . . . . . . . . . . . . . . Highest Temperature 438 | . 2 90 21 147 398 300 252 300 . . 115 270 218 185 438 Average Temperature 76 | . 2 19 7 46 112 94 90 86 . . 62 55 59 33 147 Received Heat Transfer 4285 | . 117 471 126 567 549 144 . 398 84 56 234 354 342 426 417 Effects 16 | . . . . . 5 . . 2 . . . 1 . . 8 Shutdowns 5 | . . . . . 2 . . . . . . . . . 3 Energy Bleed 5 | . . . . . 2 . . 2 . . . 1 . . . Interference 1 | . . . . . 1 . . . . . . . . . . Damage (minor) 1 | . . . . . . . . . . . . . . . 1 Damage (major) 4 | . . . . . . . . . . . . . . . 4 Siege Activations 23 | . . . . . . . . 5 5 . 2 2 6 1 2 Total Turns 387 | . . . . . . . . 66 125 . 21 30 129 5 11 Longest Duration 54 | . . . . . . . . 20 39 . 12 19 54 5 6 Robots Corrupted 1 | . . . . . . 1 . . . . . . . . . Combat Hostiles 1 | . . . . . . 1 . . . . . . . . . Parts Fried 10 | . . 1 . . 3 2 . . . . 1 1 . . 2 Impact Corruptions . | . . . . . . . . . . . . . . . . Robots Melted . | . . . . . . . . . . . . . . . . Combat Hostiles . | . . . . . . . . . . . . . . . . Parts Melted 2 | . . 1 . . . . . 1 . . . . . . . Heat Transferred 4012 | . . 888 . . 200 100 185 1456 . 350 . . . . 833 Parts Sabotaged . | . . . . . . . . . . . . . . . . Parts Stolen . | . . . . . . . . . . . . . . . . Parts Stripped . | . . . . . . . . . . . . . . . . Power Chain Reactions 8 | . . 1 . . 3 2 . 1 . . 1 . . . . Missiles Intercepted . | . . . . . . . . . . . . . . . . Alert | -11 -10 -9 -9 -8 -8 -7 -7 -7 -7 -7 -7 -6 -6 -6 -6 ------- Run | Scr Mat Mat Min Mat Gar Fac Was Fac Gar Fac Gar Fac Gar Fac Gar Peak Influence 1542 | 25 203 352 76 430 1227 1089 365 1468 1542 988 1024 683 803 433 499 Initial 1027 | . 16 32 76 15 211 644 365 . 1027 809 564 537 379 421 210 Average 489 | 11 118 197 38 264 799 810 158 509 1286 873 776 524 636 250 373 Maximum Alert Level 4 | . 1 1 . 2 4 3 1 4 4 3 3 2 3 2 2 Low Security (%) 26 | 100 94 51 100 25 . . 69 44 . . . . . 28 . Level 1 20 | . 5 48 . 68 10 . 30 7 . . . . 3 55 46 Level 2 24 | . . . . 6 29 38 . 14 . . 42 99 48 16 53 Level 3 22 | . . . . . 39 61 . 8 37 100 57 . 47 . . Level 4 6 | . . . . . 20 . . 24 62 . . . . . . Level 5 . | . . . . . . . . . . . . . . . . High Security . | . . . . . . . . . . . . . . . . Max Security . | . . . . . . . . . . . . . . . . Squads Dispatched 52 | . 4 4 . 3 . 5 . 14 . 5 . 6 . 11 . Investigation 18 | . 2 1 . . . 2 . 5 . 1 . 1 . 6 . Extermination 10 | . . . . . . 2 . 2 . 2 . 2 . 2 . Reinforcement 11 | . 2 3 . 2 . 1 . 2 . . . . . 1 . Assault 2 | . . . . . . . . 1 . . . 1 . . . Garrison 11 | . . . . 1 . . . 4 . 2 . 2 . 2 . Intercept . | . . . . . . . . . . . . . . . . Construction Impeded 1 | . . . . . . . . 1 . . . . . . . Haulers Reinforced 1 | . . . . . . . . . . . . . . 1 . Stealth | -11 -10 -9 -9 -8 -8 -7 -7 -7 -7 -7 -7 -6 -6 -6 -6 --------- Run | Scr Mat Mat Min Mat Gar Fac Was Fac Gar Fac Gar Fac Gar Fac Gar Distress Signals 12 | . . 1 . 5 . . . 3 . . . . . 3 . Communications Jammed . | . . . . . . . . . . . . . . . . Distress Signals . | . . . . . . . . . . . . . . . . Times Spotted 411 | . 23 29 20 40 33 17 6 59 22 9 40 25 26 40 22 Peak Tracking Total 15 | . 4 3 15 7 5 4 5 6 6 3 9 5 8 4 9 Tactical Retreats 19 | . 1 . 2 1 6 . . 1 2 . 3 1 . 1 1 Traps | -11 -10 -9 -9 -8 -8 -7 -7 -7 -7 -7 -7 -6 -6 -6 -6 ------- Run | Scr Mat Mat Min Mat Gar Fac Was Fac Gar Fac Gar Fac Gar Fac Gar Traps Triggered 36 | . 1 2 . . 5 3 . 1 . . 9 1 13 1 . Indirectly 2 | . . . . . . . . 1 . . 1 . . . . Trap Hack Attempts . | . . . . . . . . . . . . . . . . Triggered . | . . . . . . . . . . . . . . . . Disarmed . | . . . . . . . . . . . . . . . . Reprogrammed . | . . . . . . . . . . . . . . . . Reused . | . . . . . . . . . . . . . . . . Traps Extracted . | . . . . . . . . . . . . . . . . Installed . | . . . . . . . . . . . . . . . . Triggered 1 | . . . . . . . . . . . 1 . . . . Machines | -11 -10 -9 -9 -8 -8 -7 -7 -7 -7 -7 -7 -6 -6 -6 -6 ---------- Run | Scr Mat Mat Min Mat Gar Fac Was Fac Gar Fac Gar Fac Gar Fac Gar Machines Disabled 41 | . . 5 . 4 5 1 . 5 2 5 4 3 4 1 2 Max in Single Turn 5 | . . 2 . 1 1 1 . 2 1 5 1 1 1 . 1 Garrison Access 4 | . . . . . . 1 . 1 . . . . . 2 . Garrison Relay 17 | . . . . . 5 . . . 2 . 4 . 4 . 2 Machines Sabotaged . | . . . . . . . . . . . . . . . . Garrisons Compromised . | . . . . . . . . . . . . . . . . Overloaded Fab Kills . | . . . . . . . . . . . . . . . . Fab Network Shutdowns 2 | . . . . . . 1 . 1 . . . . . . . Hacking | -11 -10 -9 -9 -8 -8 -7 -7 -7 -7 -7 -7 -6 -6 -6 -6 --------- Run | Scr Mat Mat Min Mat Gar Fac Was Fac Gar Fac Gar Fac Gar Fac Gar Machines Accessed 56 | . 7 1 . 5 . 5 . 13 . 5 . 7 . 13 . Terminals 27 | . 6 1 . 4 . 2 . 4 . 1 . 3 . 6 . Fabricators 5 | . . . . . . 1 . 2 . . . 1 . 1 . Repair Stations 5 | . . . . . . . . 1 . 1 . 2 . 1 . Recycling Units 6 | . 1 . . . . 1 . 3 . . . . . 1 . Scanalyzers 4 | . . . . . . . . 1 . 2 . . . 1 . Garrison Access 9 | . . . . 1 . 1 . 2 . 1 . 1 . 3 . Total Hacks 153 | . 27 4 . 17 . 13 . 32 . 12 . 15 . 33 . Successful 67 | . 15 3 . 7 . 2 . 18 . 6 . 4 . 12 . Failed 86 | . 12 1 . 10 . 11 . 14 . 6 . 11 . 21 . Catastrophic 14 | . 2 . . . . 2 . 3 . . . 2 . 5 . Database Lockouts . | . . . . . . . . . . . . . . . . Manual 72 | . 18 2 . 10 . 8 . 13 . 4 . 5 . 12 . Terminals 86 | . 26 4 . 16 . 5 . 6 . 4 . 6 . 19 . Fabricators 18 | . . . . . . 3 . 9 . . . 2 . 4 . Repair Stations 10 | . . . . . . . . 2 . 2 . 4 . 2 . Recycling Units 12 | . 1 . . . . 4 . 6 . . . . . 1 . Scanalyzers 9 | . . . . . . . . 5 . 3 . . . 1 . Garrison Access 18 | . . . . 1 . 1 . 4 . 3 . 3 . 6 . Terminal Hacks 25 | . 11 3 . 4 . . . 1 . 2 . . . 4 . Robot Schematic 1 | . . . . . . . . 1 . . . . . . . Robot Analysis 3 | . 3 . . . . . . . . . . . . . . Prototype ID Bank 1 | . 1 . . . . . . . . . . . . . . Branch Access Points 2 | . . 1 . . . . . . . . . . . 1 . Terminal Index 2 | . 1 . . . . . . . . . . . . 1 . Repair Station Index 1 | . . . . . . . . . . 1 . . . . . Unreport Threat 4 | . . 1 . 1 . . . . . . . . . 2 . Locate Traps 1 | . . . . . . . . . . 1 . . . . . Transport Status 1 | . . . . 1 . . . . . . . . . . . Hauler Manifests 3 | . 1 1 . 1 . . . . . . . . . . . Registered Components 1 | . 1 . . . . . . . . . . . . . . Registered Prototypes 1 | . 1 . . . . . . . . . . . . . . Zone Layout 4 | . 3 . . 1 . . . . . . . . . . . Fabricator Hacks 6 | . . . . . . 1 . 4 . . . . . 1 . Load Schematic 2 | . . . . . . . . 2 . . . . . . . Build 4 | . . . . . . 1 . 2 . . . . . 1 . Repair Station Hacks 2 | . . . . . . . . . . . . 2 . . . Scan Component 1 | . . . . . . . . . . . . 1 . . . Repair 1 | . . . . . . . . . . . . 1 . . . Recycling Unit Hacks 1 | . . . . . . . . 1 . . . . . . . Retrieve Components 1 | . . . . . . . . 1 . . . . . . . Scanalyzer 6 | . . . . . . . . 5 . 1 . . . . . Insert Component 3 | . . . . . . . . 2 . 1 . . . . . Analyze 3 | . . . . . . . . 3 . . . . . . . Garrison Access Hacks 8 | . . . . 1 . 1 . 1 . 1 . 1 . 3 . Unlock Access 5 | . . . . 1 . . . 1 . 1 . 1 . 1 . Seal Access 3 | . . . . . . 1 . . . . . . . 2 . Unauthorized Hacks 19 | . 4 . . 2 . . . 6 . 2 . 1 . 4 . Terminals 6 | . 3 . . 2 . . . . . . . . . 1 . Track 4 | . 3 . . 1 . . . . . . . . . . . Botnet 1 | . . . . 1 . . . . . . . . . . . Operators 1 | . . . . . . . . . . . . . . 1 . Fabricators 2 | . . . . . . . . 2 . . . . . . . Prioritize 2 | . . . . . . . . 2 . . . . . . . Repair Stations 3 | . . . . . . . . 1 . 1 . 1 . . . Mechanics 3 | . . . . . . . . 1 . 1 . 1 . . . Recycling Units 4 | . 1 . . . . . . 2 . . . . . 1 . Tunnel 4 | . 1 . . . . . . 2 . . . . . 1 . Scanalyzers . | . . . . . . . . . . . . . . . . Garrison Access 4 | . . . . . . . . 1 . 1 . . . 2 . Reprogram 1 | . . . . . . . . . . . . . . 1 . Eject 3 | . . . . . . . . 1 . 1 . . . 1 . Data Cores Recovered . | . . . . . . . . . . . . . . . . Used . | . . . . . . . . . . . . . . . . Hacking Detections 48 | . 6 1 . 4 . 4 . 11 . 5 . 7 . 10 . Full Trace Events 8 | . . . . 1 . 1 . 2 . . . 1 . 3 . Feedback Events . | . . . . . . . . . . . . . . . . Feedback Blocked . | . . . . . . . . . . . . . . . . Robot Schematics Acquired 1 | . . . . . . . . 1 . . . . . . . Robots Built 3 | . . . . . . . . . . . . . . 3 . Matter 252 | . . . . . . . . . . . . . . 252 . Time 44 | . . . . . . . . . . . . . . 44 . Total Robot Build Rating 12 | . . . . . . . . . . . . . . 12 . Part Schematics Acquired 2 | . . . . . . . . 2 . . . . . . . Parts Built 5 | . . . . . . 2 . 3 . . . . . . . Matter 698 | . . . . . . 212 . 486 . . . . . . . Time 304 | . . . . . . 53 . 251 . . . . . . . Total Part Build Rating 30 | . . . . . . 12 . 18 . . . . . . . Parts Repaired 1 | . . . . . . . . . . . . 1 . . . Time 35 | . . . . . . . . . . . . 35 . . . Parts Recycled . | . . . . . . . . . . . . . . . . Recycled Matter . | . . . . . . . . . . . . . . . . Retrieved Matter . | . . . . . . . . . . . . . . . . Retrieved Components 7 | . . . . . . . . 7 . . . . . . . Parts Scanalyzed 3 | . . . . . . . . 2 . 1 . . . . . Part Schematics Acquired 2 | . . . . . . . . 2 . . . . . . . Parts Damaged 1 | . . . . . . . . 1 . . . . . . . Bothacking | -11 -10 -9 -9 -8 -8 -7 -7 -7 -7 -7 -7 -6 -6 -6 -6 ------------ Run | Scr Mat Mat Min Mat Gar Fac Was Fac Gar Fac Gar Fac Gar Fac Gar Used RIF Installer 4 | . . . . . 1 . . . 1 . 1 . 1 . . Threat Obfuscator 1 | . . . . . . . . . 1 . . . . . . Zone Cloak 1 | . . . . . . . . . . . . . 1 . . Autooverride 1 | . . . . . . . . . . . 1 . . . . Robots Hacked 74 | . . . . . . 1 6 10 5 3 12 10 7 17 3 Non-combat 13 | . . . . . . 1 . 4 . . . 4 . 4 . Combat 61 | . . . . . . . 6 6 5 3 12 6 7 13 3 Autooverrided 13 | . . . . . . . . . . . 5 2 2 3 1 Robot Hacks Applied 73 | . . . . . . 1 6 15 6 4 7 9 5 18 2 parse_system 1 | . . . . . . . . . . . . . . 1 . find_chute 2 | . . . . . . 1 . . . . . 1 . . . find_fabricator 3 | . . . . . . . . 2 . . . . . 1 . drop_inventory 5 | . . . . . . . . 3 . . . . . 2 . map_route 2 | . . . . . . . . 1 . . . . . 1 . ignore_targets 6 | . . . . . . . 6 . . . . . . . . find_garrison 7 | . . . . . . . . 3 . 1 . 1 . 2 . link_fov 1 | . . . . . . . . . . . . 1 . . . scatter_targeting 1 | . . . . . . . . . . . 1 . . . . disrupt_area 1 | . . . . . . . . . 1 . . . . . . overload_power 1 | . . . . . . . . . . . . . . 1 . amplify_resonance 2 | . . . . . . . . 1 . . . . 1 . . go_dormant 1 | . . . . . . . . . . . . . . 1 . overwrite_iff 7 | . . . . . . . . . 3 1 1 . . 1 1 streamctrl_high 1 | . . . . . . . . . . . . . . . 1 formatsys_low 3 | . . . . . . . . . . . . 2 . 1 . formatsys_high 29 | . . . . . . . . 5 2 2 5 4 4 7 . Relay Couplers Released 85 | . . . . . 22 . . 4 6 4 17 3 16 6 7 Ejected 12 | . . . . . . . . 4 . 4 . . . 4 . Machine Destruction 70 | . . . . . 22 . . . 6 . 17 . 16 2 7 Programmers 3 | . . . . . . . . . . . . 3 . . . Attached 31 | . . . . . . . 1 6 3 2 6 3 4 5 1 Robots Rewired . | . . . . . . . . . . . . . . . . Allies Hacked . | . . . . . . . . . . . . . . . . Hacks Repelled . | . . . . . . . . . . . . . . . . Allies | -11 -10 -9 -9 -8 -8 -7 -7 -7 -7 -7 -7 -6 -6 -6 -6 -------- Run | Scr Mat Mat Min Mat Gar Fac Was Fac Gar Fac Gar Fac Gar Fac Gar Total Allies 61 | . . . 3 . . . . 5 5 3 11 8 6 17 3 Largest Group 5 | . . . 3 . . . . 2 3 3 4 4 5 5 3 Highest-Rated Group 161 | . . . 40 . . . . 61 48 48 64 108 109 161 114 Highest-Rated Ally 47 | . . . 16 . . . . 32 16 16 16 47 32 47 41 Total Orders 10 | . . . . . . . . . . . . 1 5 4 . STAY 3 | . . . . . . . . . . . . . 2 1 . FOLLOW 1 | . . . . . . . . . . . . . . 1 . AID 6 | . . . . . . . . . . . . 1 3 2 . Ally Attacks 328 | . . . 24 . . . . 46 17 25 38 28 23 94 33 Total Damage 6677 | . . . 283 . . . . 1207 259 282 440 459 456 2169 1122 Kills 66 | . . . 6 . . . . 14 4 1 5 3 6 20 7 Allies Corrupted . | . . . . . . . . . . . . . . . . Allies Melted 1 | . . . 1 . . . . . . . . . . . . Intel | -11 -10 -9 -9 -8 -8 -7 -7 -7 -7 -7 -7 -6 -6 -6 -6 ------- Run | Scr Mat Mat Min Mat Gar Fac Was Fac Gar Fac Gar Fac Gar Fac Gar Robot Analysis Total 3 | . 3 . . . . . . . . . . . . . . Derelict Logs Recovered 1 | . . . 1 . . . . . . . . . . . . Drone Launches . | . . . . . . . . . . . . . . . . Drone Recoveries . | . . . . . . . . . . . . . . . . Exploration | -11 -10 -9 -9 -8 -8 -7 -7 -7 -7 -7 -7 -6 -6 -6 -6 ------------- Run | Scr Mat Mat Min Mat Gar Fac Was Fac Gar Fac Gar Fac Gar Fac Gar Turns Passed 20061 | 137 1401 1397 364 1484 1994 1411 1306 1958 587 645 1334 1118 2049 2414 462 Spaces Moved 9664 | 64 642 603 271 619 992 890 329 807 222 331 682 664 1087 1279 182 Core 9 | 6 . . . . . . . . . . 3 . . . . Treads 5934 | 58 642 603 15 488 736 27 329 806 222 331 68 8 397 1022 182 Legs 138 | . . . . . . . . . . . 138 . . . . Wheels 3583 | . . . 256 131 256 863 . 1 . . 473 656 690 257 . Hover . | . . . . . . . . . . . . . . . . Flight . | . . . . . . . . . . . . . . . . Fastest Speed 50 | 50 160 160 110 120 120 120 160 160 160 160 100 110 110 120 160 Average Speed 152 | 151 174 172 113 167 164 121 169 178 160 168 140 119 136 151 160 Slowest Speed 1500 | 160 180 180 180 220 200 175 180 180 160 180 1500 180 180 160 160 Overloaded Moves . | . . . . . . . . . . . . . . . . Propulsion Burnouts . | . . . . . . . . . . . . . . . . Robots Hopped . | . . . . . . . . . . . . . . . . Cave-ins Triggered . | . . . . . . . . . . . . . . . . Exploration Rate (%) 48 | 5 96 56 35 73 83 22 85 28 45 10 79 15 95 30 22 Regions Visited 15 Branch Regions 1 Pre-discovered Areas 4 | . 1 . . . . . . 2 . . . . . 1 . Known Exits Taken 6 | . . 1 . 1 . . . 1 . 1 . 1 . 1 . Unknown Exits Taken 3 | 1 1 . 1 . . . . . . . . . . . . Scrap Searched 1 | . . . 1 . . . . . . . . . . . . Spaces Dug 20 | . . 5 . 1 . . . 5 . 1 . 6 . 2 . Terrain Destroyed 147 | . 9 15 12 1 50 5 . 30 . 12 1 7 . 2 3 Melee 13 | . . . . 1 . . . 5 . 1 . 6 . . . Projectile 10 | . . . . . 2 1 . 1 . . . 1 . 2 3 AOE 124 | . 9 15 12 . 48 4 . 24 . 11 1 . . . . Terrain Rammed . | . . . . . . . . . . . . . . . . Walls Destroyed . | . . . . . . . . . . . . . . . . Machines Disabled . | . . . . . . . . . . . . . . . . Actions | -11 -10 -9 -9 -8 -8 -7 -7 -7 -7 -7 -7 -6 -6 -6 -6 --------- Run | Scr Mat Mat Min Mat Gar Fac Was Fac Gar Fac Gar Fac Gar Fac Gar Total 13166 | 83 774 769 300 843 1187 1088 945 1132 403 388 939 873 1533 1639 270 Wait 1427 | . 17 5 4 13 33 37 505 113 120 10 24 59 268 209 10 Move 9652 | 63 641 602 270 619 991 890 328 806 221 330 681 664 1086 1278 182 Hop . | . . . . . . . . . . . . . . . . Pick Up 204 | 5 20 20 2 22 15 17 5 17 4 5 20 21 13 14 4 Fast Attach 93 | 6 2 7 . 15 3 5 6 9 2 1 16 10 2 9 . Attach 84 | . 1 7 7 6 10 7 2 6 2 2 10 5 5 7 7 Detach 4 | . . . . . . . . . . . 2 . 2 . . Swap 221 | . 5 11 2 13 9 21 5 39 11 12 16 17 16 33 11 Drop 219 | . 11 17 . 32 13 25 13 23 5 4 18 24 10 19 5 Fire 972 | 9 77 100 15 121 85 80 13 110 36 22 77 63 52 63 49 Melee 149 | . . . . 1 12 6 68 9 2 2 15 10 15 7 2 Ram . | . . . . . . . . . . . . . . . . Kick . | . . . . . . . . . . . . . . . . Crush 2 | . . . . 1 . . . . . . . . 1 . . Escape Stasis 139 | . . . . . 16 . . . . . 60 . 63 . . Rewire . | . . . . . . . . . . . . . . . . Trap . | . . . . . . . . . . . . . . . . Miscellaneous . | . . . . . . . . . . . . . . . . Route ------- -11/Scrapyard -10/Materials (discovered 4 exits: *Mat x3 / [*Min]) -9/Materials (discovered 3 exits: *Mat x2 / *Min) -9/Mines -8/Materials (discovered 3 exits: *Fac / [*Sto] / Gar) -8/Garrison (discovered 3 exits: *Fac x3) -7/Factory (discovered 2 exits: *Fac / [*Low]) -7/Waste -7/Factory (discovered 5 exits: *Fac x3 / [*Low] / Gar) -7/Garrison -7/Factory -7/Garrison (discovered 3 exits: *Fac x3) -6/Factory (discovered 2 exits: *Low / Gar) -6/Garrison (discovered 3 exits: *Fac x3) -6/Factory (discovered 4 exits: [Fac] / *Low x2 / Gar) -6/Garrison History --------- Turn | Location | Event 2 | -11/Scrapyard | Met Revision 17 12 | -11/Scrapyard | Discovered new exit (range 14) 138 | -11/Scrapyard | Entered Materials 306 | -10/Materials | Build established: Mutant 334 | -10/Materials | Discovered new exit (range 12) 458 | -10/Materials | Discovered new exit (range 20) 1181 | -10/Materials | Discovered new exit (range 14) 1512 | -10/Materials | Discovered new exit (range 15) 1539 | -10/Materials | Entered another Materials area 1539 | -9/Materials | Evolved 2 slots: Propulsion x1, Utility x1 1730 | -9/Materials | Discovered new exit (range 8) 1889 | -9/Materials | Discovered new exit (range 3) 2283 | -9/Materials | Identified exit to Mines 2383 | -9/Materials | Build established: Hauler-Mutant 2529 | -9/Materials | Discovered new exit (range 8) 2936 | -9/Materials | Entered Mines 2937 | -9/Mines | Assembled infested the area 2942 | -9/Mines | Assisted by a Guerilla fighting off Assembled 2965 | -9/Mines | Assisted by bots powering up and referring to "LRC-V3" 2971 | -9/Mines | Core integrity fell below 50% 3001 | -9/Mines | Lost 5 parts (1p3n1w) 3030 | -9/Mines | Core integrity fell below 20% 3066 | -9/Mines | Lost 3 parts (1n2w) 3066 | -9/Mines | Learned Materials trap positions 3285 | -9/Mines | Discovered new exit (range 14) 3300 | -9/Mines | Entered Materials 3300 | -8/Materials | Evolved 2 slots: Utility x2 3301 | -8/Materials | Loaded intel: 20 trap records 3610 | -8/Materials | Destroyed 7 combat bots 3857 | -8/Materials | Build established: Scavenger-Mutant 4190 | -8/Materials | Discovered new exit (range 5) 4630 | -8/Materials | Garrison activated, responded to threat 4777 | -8/Materials | Discovered new exit (range 15) 4784 | -8/Materials | Identified exit to Garrison 4784 | -8/Materials | Entered Garrison 4858 | -8/Garrison | Triggered checkpoint 4930 | -8/Garrison | Lost 3 parts (1u2w) 4964 | -8/Garrison | Spotted B-75 Beast 5020 | -8/Garrison | Triggered checkpoint 5058 | -8/Garrison | Discovered new exit (range 10) 5164 | -8/Garrison | Triggered checkpoint 5238 | -8/Garrison | Discovered new exit (range 11) 5316 | -8/Garrison | Triggered checkpoint 5430 | -8/Garrison | Discovered new exit (range 12) 5461 | -8/Garrison | Installed Relay Interface Framework 5540 | -8/Garrison | Triggered checkpoint 5587 | -8/Garrison | Garrison Relay disabled 5636 | -8/Garrison | Triggered checkpoint 5676 | -8/Garrison | Core integrity fell below 50% 5788 | -8/Garrison | Triggered checkpoint 5936 | -8/Garrison | Garrison Relay disabled 6168 | -8/Garrison | Garrison Relay disabled 6328 | -8/Garrison | Triggered checkpoint 6351 | -8/Garrison | Build established: Bothacker-Mutant 6396 | -8/Garrison | Garrison Relay disabled 6570 | -8/Garrison | Triggered checkpoint 6584 | -8/Garrison | Garrison Relay disabled 6670 | -8/Garrison | Spotted B-75 Beast 6778 | -8/Garrison | Entered Factory 6778 | -7/Factory | Evolved 2 slots: Utility x2 7132 | -7/Factory | Discovered new exit (range 11) 7448 | -7/Factory | Fabricated Remote Force Field? 7473 | -7/Factory | Discovered new exit (range 6) 7688 | -7/Factory | Local fabrication network quarantined 8189 | -7/Factory | Sucked down chute 8189 | -7/Factory | Entered Waste 8204 | -7/Waste | EMP discharged 8204 | -7/Waste | System corruption reached 10% 8223 | -7/Waste | Spotted C-40 Crusher 8228 | -7/Waste | Spotted C-40 Crusher 8234 | -7/Waste | Spotted C-40 Crusher 8234 | -7/Waste | Spotted C-40 Crusher 8234 | -7/Waste | Spotted C-40 Crusher 8238 | -7/Waste | Spotted C-40 Crusher 8274 | -7/Waste | Crushed by Compactor (1 part destroyed, 2 dropped) 8297 | -7/Waste | Destroyed C-40 Crusher 8302 | -7/Waste | Found Damper Plating 8304 | -7/Waste | EMP discharged 8404 | -7/Waste | EMP discharged 8504 | -7/Waste | EMP discharged 8604 | -7/Waste | EMP discharged 8655 | -7/Waste | Destroyed C-40 Crusher 8704 | -7/Waste | EMP discharged 8712 | -7/Waste | Destroyed C-40 Crusher 8721 | -7/Waste | Found Damper Plating 8804 | -7/Waste | EMP discharged 8904 | -7/Waste | EMP discharged 8909 | -7/Waste | Destroyed C-40 Crusher 8926 | -7/Waste | Found Damper Plating 8965 | -7/Waste | Discovered new exit (range 15) 9004 | -7/Waste | EMP discharged 9104 | -7/Waste | EMP discharged 9204 | -7/Waste | EMP discharged 9304 | -7/Waste | EMP discharged 9404 | -7/Waste | EMP discharged 9495 | -7/Waste | Entered Factory 9964 | -7/Factory | Build established: Mutant 10052 | -7/Factory | Fabricated Mni. Assault Cannon (x1) 10489 | -7/Factory | Discovered new exit (range 51) 10489 | -7/Factory | Discovered new exit (range 84) 10601 | -7/Factory | Garrison activated, responded to threat 10654 | -7/Factory | Build established: Scavenger-Mutant 10962 | -7/Factory | Fabricated Antimatter Reactor (x2) 10977 | -7/Factory | Local fabrication network quarantined 11002 | -7/Factory | Build established: Mutant 11097 | -7/Factory | Discovered new exit (range 9) 11175 | -7/Factory | Discovered new exit (range 10) 11326 | -7/Factory | Identified exit to Garrison 11453 | -7/Factory | Entered Garrison 11505 | -7/Garrison | Triggered checkpoint 11579 | -7/Garrison | Garrison Relay disabled 11727 | -7/Garrison | Triggered checkpoint 11741 | -7/Garrison | Destroyed 7 combat bots 11819 | -7/Garrison | Triggered checkpoint 11903 | -7/Garrison | Discovered new exit (range 9) 11926 | -7/Garrison | Expanded RIF knowledge: Threat Obfuscation 11956 | -7/Garrison | Triggered checkpoint 11984 | -7/Garrison | Garrison Relay disabled 12040 | -7/Garrison | Entered Factory 12040 | -7/Factory | Accompanied by 2 allies 12296 | -7/Factory | Build established: Bothacker-Mutant 12518 | -7/Factory | Garrison activated, responded to threat 12674 | -7/Factory | Identified exit to Garrison 12685 | -7/Factory | Entered Garrison 12685 | -7/Garrison | Accompanied by 1 ally 12736 | -7/Garrison | Triggered checkpoint 12776 | -7/Garrison | Garrison Relay disabled 12850 | -7/Garrison | Triggered checkpoint 12865 | -7/Garrison | Core integrity fell below 50% 12915 | -7/Garrison | Lost 8 parts (1p1n5u1w) 12933 | -7/Garrison | Destroyed 9 combat bots 13238 | -7/Garrison | Triggered checkpoint 13310 | -7/Garrison | Core integrity fell below 20% 13337 | -7/Garrison | Lost 5 parts (1n2u2w) 13454 | -7/Garrison | Discovered new exit (range 10) 13533 | -7/Garrison | Discovered new exit (range 10) 13552 | -7/Garrison | Expanded RIF knowledge: Autooverride 13586 | -7/Garrison | Triggered checkpoint 13609 | -7/Garrison | Garrison Relay disabled 13680 | -7/Garrison | Triggered checkpoint 13762 | -7/Garrison | Triggered checkpoint 13787 | -7/Garrison | Garrison Relay disabled 13817 | -7/Garrison | Discovered new exit (range 12) 13884 | -7/Garrison | Triggered checkpoint 13917 | -7/Garrison | Garrison Relay disabled 14019 | -7/Garrison | Entered Factory 14019 | -6/Factory | Accompanied by 2 allies 14019 | -6/Factory | Evolved 2 slots: Propulsion x1, Weapon x1 14339 | -6/Factory | P-60 Hacker assimilated allied Veteran 5a 14501 | -6/Factory | Repaired Enh. Nuclear Core 14806 | -6/Factory | Discovered new exit (range 6) 15069 | -6/Factory | First assault squad dispatched 15104 | -6/Factory | Identified exit to Garrison 15137 | -6/Factory | Entered Garrison 15137 | -6/Garrison | Accompanied by 3 allies 15146 | -6/Garrison | Expanded RIF knowledge: Zone Cloak 15200 | -6/Garrison | Triggered checkpoint 15241 | -6/Garrison | Garrison Relay disabled 15391 | -6/Garrison | Spotted B-75 Beast 15404 | -6/Garrison | Triggered checkpoint 15444 | -6/Garrison | Destroyed B-75 Beast 15623 | -6/Garrison | Triggered checkpoint 15633 | -6/Garrison | Triggered checkpoint 15683 | -6/Garrison | Destroyed 8 combat bots 15860 | -6/Garrison | Discovered new exit (range 8) 15907 | -6/Garrison | Build established: Bothacker-Tank 15916 | -6/Garrison | Triggered checkpoint 15979 | -6/Garrison | Garrison Relay disabled 16100 | -6/Garrison | Discovered new exit (range 10) 16159 | -6/Garrison | Triggered checkpoint 16218 | -6/Garrison | Garrison Relay disabled 16690 | -6/Garrison | Build established: Botlord-Mutant 16938 | -6/Garrison | Discovered new exit (range 11) 16974 | -6/Garrison | Triggered checkpoint 17018 | -6/Garrison | Garrison Relay disabled 17186 | -6/Garrison | Entered Factory 17186 | -6/Factory | Accompanied by 1 ally 17471 | -6/Factory | Build established: Botlord-Tank 17646 | -6/Factory | Garrison activated, responded to threat 17744 | -6/Factory | Found Hvy. Reflective Plating 18072 | -6/Factory | Discovered new exit (range 15) 18109 | -6/Factory | Identified exit to Lower Caves 18245 | -6/Factory | Discovered new exit (range 159) 19094 | -6/Factory | Fabricated L-41 Fighter (x3) 19176 | -6/Factory | Garrison activated, responded to threat 19499 | -6/Factory | Build established: Botlord-Mutant 19575 | -6/Factory | Identified exit to Garrison 19600 | -6/Factory | Entered Garrison 19600 | -6/Garrison | Accompanied by 3 allies 19628 | -6/Garrison | Triggered checkpoint 19681 | -6/Garrison | Garrison Relay disabled 19790 | -6/Garrison | Triggered checkpoint 19853 | -6/Garrison | Garrison Relay disabled 19933 | -6/Garrison | Spotted B-75 Beast 19942 | -6/Garrison | Triggered checkpoint 19956 | -6/Garrison | Triggered checkpoint 19970 | -6/Garrison | Triggered checkpoint 19999 | -6/Garrison | Core integrity fell below 50% 20025 | -6/Garrison | Lost 10 parts (1p3n1u5w) 20027 | -6/Garrison | Core integrity fell below 20% 20062 | -6/Garrison | Destroyed by B-75 Beast with Heavy Machine Gun Last Messages --------------- 20004_ Carbon-fiber Leg fried. 20004_ Adv. Heat Sink fried. 20004_ Soldier 5g destroyed. 20007_ Discarded Relay Coupler [Grunt]. 20007_ Knocked back. 20014_ The unstable cave ceiling collapses. 20029_ System corrupted: Energy discharge (-23). 20033_ Power failure, Enh. Nuclear Core shutdown. 20036_ Overheating: Lrg. Storage Unit damaged (-173). 20036_ Overheating: Lrg. Storage Unit damaged (-86). 20036_ Overheating: Enh. Nuclear Core damaged (-11). 20036_ Overheating: Lrg. Storage Unit damaged (-192). 20036_ The unstable cave ceiling collapses. 20036_ B-75 Beast misfires. 20046_ The unstable cave ceiling collapses. 20047_ Power failure, Enh. Nuclear Core shutdown. 20052_ Discarded Relay Coupler [Hunter]. 20059_ Destroyed Med. Reflective Plating. 20060_ Power failure, Enh. Nuclear Core shutdown. 20061_ Overheating: Hvy. Plasma Cannon damaged (-46). Map ----- +----------------------------------------------------+ | ??????????????####### #?# #????????????????????? | | ????????????### #?# #????????????????????? | | ????????????#! ###### #?# #????????????????????? | | ????????????#! #????# #?# #????????????????????? | | ????????????# !#????# #?# #????????????????????? | | ???#######??## #???###### #????????????????????? | | ???#""" "#???# #???#%%*## #????????????????????? | | ?#### ! ###### #####=[ ## #????????????????????? | | ?# ! ! !%*%[ =*= #????????????????????? | | ?# !!%!= #????????????????????? | | ?######################## #????????????????????? | | ??# #???????????????????# #????????????????????? | | ??# #???????????????????# #????????????????????? | | ??# #???????????????????# #????????????????????? | | ?##!##################### ######### #?????????? | | ?#!%! #?????????? | | ?#%*!!! == #?????????? | | ?####!!!###### ##### ==## ######### #?????????? | | ???#"" ""#???# #???#*%%## #?# #????????????????? | | ???#######??## #???##"### #?# #????????????????? | | ????????????#! #????# #?# ### #????????????????? | | ????????????#! #????# ?#^ # # ####???#?????????? | | ????????????#! #????##### #?? #?????????? | | ????????????## #????????# ^ # ### ## ## ?? | | ?????????????# #????????# [ % ^ | | ?????????????# ##########@ !% [ = | | ?????????????# % BB | | ?????????????############## BB ## ## | | ??????????????????????????# # ### #??? #???? | | ??????????????????????????### # +?? ??? ??? | | ????????????????????????????###### ? ??? ? | | ?????????????????????????????????? ????? | | ??????????????????????????????????? ???? | | ???????????????????????????????????? "# #???? | | ???????????????????????????????????? ## #???? | | ????????????????????????????????????? ?? ???? | | ????????????????????????????????????? ?? ???? | | ????????????????????????????????????? ?????????? | | ?????????????????????????????????????? #?????????? | | ?????????????????????????????????????????????????? | | ?????????????????????????????????????????????????? | | ?????????????????????????????????????????????????? | | ?????????????????????????????????????????????????? | | ?????????????????????????????????????????????????? | | ?????????????????????????????????????????????????? | | ?????????????????????????????????????????????????? | | ?????????????????????????????????????????????????? | | ?????????????????????????????????????????????????? | | ?????????????????????????????????????????????????? | | ?????????????????????????????????????????????????? | +----------------------------------------------------+ Best States ------------- Heat Dissipation 62 Energy Generation 21 Energy Capacity 325 Matter Stores 300 Matter Capacity 300 Sight Range 16 Terrain Scan Range 20 Terrain Scan Density 10 Jamming Range 8 Armor Coverage 2400 Resistance: KI 30 Resistance: TH 25 Resistance: EM 90 Weapon Cycling 15 Evasion (%) 40 Armor Integrity Analysis 33 Recoil Reduction 4 Kinecelleration 30 Salvage Targeting 1 Offensive Hacking 20 Relay Coupler Types 134 Relay Coupler Value 3 Item Schematics ----------------- Mni. Assault Cannon | -7/Factory | Scanalyzed Antimatter Reactor | -7/Factory | Scanalyzed Robot Schematics ------------------ S-27 Virus | -7/Factory | Hacked Fabricated ------------ Remote Force Field | x2 | -7/Factory | Preloaded Mni. Assault Cannon | x1 | -7/Factory Antimatter Reactor | x2 | -7/Factory L-41 Fighter | x3 | -6/Factory | Preloaded Alien Tech Used ----------------- None Achievements -------------- None Challenges ------------ None Game ------ Seed MyomerAntimatterAutogun Manual? 0 Play Time 02:27:31 Cumulative 550.7 hours Start 2021.06.04 @ 12:53:24 End 2021.06.04 @ 15:42:57 Sessions 9 Manual Loads 0 Difficulty Rogue Special Mode None Game No. 346 Rogue 346 Adventurer 0 Explorer 0 Win Type - Total 6 Types 4/0/1/0/1/0/0/0/0 Lore% 88 Gallery% 89 Achievement% 70 Wizard Run 0 Options --------- ASCII 0 Keyboard 0 Movement Mouse Keybinds 1 Fullscreen 2 Font 24/Smallcaps Map View 76x50 Tactical HUD 1 Map Filters NONE Filters NONE Steam 1 RUN: ab14746a-1129-46a3-8889-a82819db57d6